Cogmind - Beta 16.1 @@@ ROGUE MODE // 2026.02.14 @ 18:32:02 Player: thingimabob Result: Destroyed by D-53 Grenadier with Mini Grenade Launcher Performance ------------- Evolutions (0) 0 Regions Visited (4) 800 Robots Destroyed (24) 120 Value Destroyed (472) 472 Prototype IDs (0) 0 Alien Tech Used (0) 0 Bonus (0) 0 TOTAL SCORE: 1392 Bonus ------- None Cogmind --------- Core Integrity 0/250 Matter 255/300 Energy 100/100 System Corruption 1% Temperature Cool (0) Movement Treading (240) Ox1 Location -9/Mines Parts ------- > --- POWER (1) -------- (None) > --- PROPULSION (2) --- Light Treads > --- UTILITY (2) ------ Large Storage Unit > --- WEAPON (2) ------- Grenade Launcher > --- INVENTORY (15) --- Large Storage Unit Huge Storage Unit Sensor Array Signal Interpreter Improved Terrain Scanner Targeting Computer Targeting Computer Light Armor Plating Light Armor Plating Assault Rifle Light Assault Rifle Light Assault Rifle Light Assault Rifle Light Assault Rifle Slug Cannon Peak State ------------ > --- POWER ------------ Light Nuclear Core > --- PROPULSION ------- Light Treads Light Treads > --- UTILITY ---------- Large Storage Unit Light Armor Plating > --- WEAPON ----------- Assault Rifle Light Cannon > --- INVENTORY -------- Large Storage Unit Huge Storage Unit Sensor Array Signal Interpreter Improved Terrain Scanner Targeting Computer Targeting Computer Light Armor Plating Light Armor Plating EM Pulse Gun EM Pulse Gun Light Assault Rifle Grenade Launcher [Rating: 10] Favorites ----------- Power Light Nuclear Core Engine Ion Engine Power Core Light Nuclear Core Propulsion Light Treads Treads Light Treads Utility Light Armor Plating Device Seismic Detector Storage Large Storage Unit Protection Light Armor Plating Weapon Assault Rifle Ballistic Gun Assault Rifle Ballistic Cannon Light Cannon Launcher Grenade Launcher Build | -11 -10 -10 -10 -9 ------- Run | Yrd Mat Min Exi Min Slots Evolved . | . . . . . Power . | . . . . . Propulsion . | . . . . . Utility . | . . . . . Weapon . | . . . . . Parts Attached 16 | 6 7 1 . 2 Power 2 | 1 1 . . . Engine 1 | 1 . . . . Core 1 | . 1 . . . Reactor . | . . . . . Propulsion 3 | 2 1 . . . Treads 3 | 2 1 . . . Leg . | . . . . . Wheel . | . . . . . Hover . | . . . . . Flight . | . . . . . Utility 4 | 2 2 . . . Device 1 | 1 . . . . Storage 2 | 1 1 . . . Processor . | . . . . . Hackware . | . . . . . Protection 1 | . 1 . . . Artifact . | . . . . . Weapon 7 | 1 3 1 . 2 Energy Gun . | . . . . . Energy Cannon . | . . . . . Ballistic Gun 5 | 1 2 1 . 1 Ballistic Cannon 1 | . 1 . . . Launcher 1 | . . . . 1 Special Weapon . | . . . . . Impact Weapon . | . . . . . Slashing Weapon . | . . . . . Piercing Weapon . | . . . . . Special Melee Weapon . | . . . . . Unidentified Prototypes . | . . . . . Parts Lost 7 | . 3 . . 4 Power 2 | . 1 . . 1 Propulsion 1 | . . . . 1 Utility 2 | . 1 . . 1 Weapon 2 | . 1 . . 1 Highest Loss Streak 3 | . 2 . . 3 To Critical Strikes . | . . . . . Average Backups 8 | . 7 12 12 14 Power . | . . . . . Propulsion . | . . . . . Utility 6 | . 5 9 9 9 Weapon 2 | . 2 3 3 5 Tool/Special . | . . . . . Unused Backups 15 | . . 2 . 13 Power . | . . . . . Propulsion . | . . . . . Utility 9 | . . . . 9 Weapon 6 | . . 2 . 4 Tool/Special . | . . . . . Average Slot Usage (%) 82 | . 76 100 100 85 Engine 2 | . 4 . . . Core 4 | . . 14 14 13 Treads 27 | . 27 28 28 27 Storage 14 | . 14 14 14 14 Protection 10 | . 9 14 14 2 Ballistic Gun 14 | . 9 25 28 25 Ballistic Cannon 6 | . 8 2 . . Peak Build Rating 10 | 6 10 10 10 10 Average Rating 7 | 4 6 10 10 9 On Entrance 7 | . 6 10 10 10 Avg Prop Armor Cover (%) . | . . . . . Naked Turns . | . . . . . Heaviest Build 33 | 13 33 33 32 30 Greatest Support 40 | 40 40 40 40 40 Greatest Overweight (x) . | . . . . . Average Overweight (x) . | . . . . . Largest Inventory Capacity 15 | 8 15 15 15 15 Average Capacity 12 | 7 11 15 15 15 Most Carried 15 | 5 14 14 12 15 Average Carried 8 | . 7 12 12 14 Final Capacity 15 | 8 15 15 15 15 Final Carried 15 | 1 13 12 12 15 Class Distribution -------------------- 100% | Mutant Dominant Class ---------------- Mutant | -10/Materials Mutant | -10/Mines Mutant | -10/Exiles Mutant | -9/Mines Resources | -11 -10 -10 -10 -9 ----------- Run | Yrd Mat Min Exi Min Matter Collected 804 | 292 407 10 . 95 Remotely . | . . . . . Salvage Created 678 | 120 405 . . 153 Parts 45 | 5 23 . . 17 Haulers Intercepted 1 | . 1 . . . Recyclers Shooed 2 | . 1 . . 1 Parts Field Recycled . | . . . . . Retrieved Matter . | . . . . . Parts Self-Destructed . | . . . . . Prevented . | . . . . . Parts Restored . | . . . . . Kills | -11 -10 -10 -10 -9 ------- Run | Yrd Mat Min Exi Min Combat Hostiles Destroyed 23 | . 12 . . 11 Melee 1 | . 1 . . . Guns 11 | . 7 . . 4 Cannons 4 | . 4 . . . AOE 7 | . . . . 7 Classes Destroyed 9 | 2 5 . . 2 Builder 1 | . . . . 1 Tunneler 2 | 2 . . . . Hauler 1 | . 1 . . . Recycler 2 | 1 . . . 1 Operator 1 | . 1 . . . Watcher 1 | . 1 . . . Swarmer 9 | . 5 . . 4 Grunt 7 | . 7 . . . Assembled 7 | . . . . 7 Best Kill Streak 8 | 2 4 . . 8 Combat Bots Only 7 | . 4 . . 7 Max Kills in Single Turn 2 | 1 1 . . 2 Gunslinging . | . . . . . Exploded 2 | . . . . 2 Melee 1 | . 1 . . . Uniques/NPCs Destroyed . | . . . . . Combat | -11 -10 -10 -10 -9 -------- Run | Yrd Mat Min Exi Min Hostile Shots Fired 116 | . 81 . . 35 Missed 23 | . 16 . . 7 Hits 93 | . 65 . . 28 Melee 2 | . . . . 2 Projectile 91 | . 65 . . 26 AOE 3 | . . . . 3 Critical Strikes 1 | . . . . 1 Damage Taken 1206 | . 729 . . 477 Core 254 | . 129 . . 125 Absorbed by Shields . | . . . . . Core Remaining (%) 100 | 100 . . . . Volleys Fired 119 | 14 87 . . 18 Largest 2 | 1 2 . . 2 Hottest 50 | 20 50 . . 40 Shots Fired 141 | 14 96 . 1 30 Gun 109 | 14 70 . 1 24 Cannon 26 | . 26 . . . Launcher 6 | . . . . 6 Special . | . . . . . Kinetic 135 | 14 96 . 1 24 Thermal . | . . . . . Explosive 6 | . . . . 6 Electromagnetic . | . . . . . Robot Hit Streak 8 | 6 8 . . 5 Robot Miss Streak 4 | 2 3 . . 4 Penetration Max . | . . . . . Secondary Targets 1 | . . . . 1 Max Gunslinging Chain 1 | . . . . 1 Shots Hit Robots 82 | 9 59 . . 14 Core Hits 50 | 4 23 . . 23 Critical Kills 1 | . 1 . . . Critical Parts Destroyed . | . . . . . Critical Strikes 1 | . 1 . . . Destroy 1 | . 1 . . . Melee Attacks . | . . . . . Impact . | . . . . . Slashing . | . . . . . Piercing . | . . . . . Sneak Attacks . | . . . . . Combat Hostiles . | . . . . . Follow-up Attacks . | . . . . . Damage Inflicted 1686 | 108 893 . . 685 Guns 790 | 108 540 . . 142 Cannons 270 | . 270 . . . Explosions 623 | . 80 . . 543 Melee . | . . . . . Ramming 3 | . 3 . . . Kinetic 1060 | 108 810 . . 142 Thermal . | . . . . . Explosive 543 | . . . . 543 Electromagnetic 80 | . 80 . . . Impact . | . . . . . Slashing . | . . . . . Piercing . | . . . . . Highest Corruption 1 | . 1 1 1 1 Average Corruption 1 | . 1 1 1 1 Corruption Purged . | . . . . . Corruption Blocked . | . . . . . Effects 18 | . 14 1 2 1 Message Errors 2 | . 2 . . . Matter Fused 4 | . 2 1 1 . Heat Flow Errors 2 | . 2 . . . Energy Discharges 2 | . 2 . . . Parts Rejected 2 | . 2 . . . Data Loss (minor) 1 | . 1 . . . Data Loss (major) 1 | . 1 . . . Misfires 3 | . 2 . 1 . Alerts 1 | . . . . 1 Overload Shots . | . . . . . Overflow Damage 18 | . 10 . . 8 Projectiles 10 | . 10 . . . Explosions 8 | . . . . 8 Melee . | . . . . . Knockbacks 3 | . 3 . . . Impact . | . . . . . Kinetic 3 | . 3 . . . Secondary . | . . . . . Self-Inflicted Damage 118 | . 42 . . 76 Shots 4 | . 1 . . 3 Rammed 1 | . 1 . . . Targets Rammed 2 | . 2 . . . Kicked . | . . . . . Crushed 1 | . 1 . . . Highest Temperature 201 | . 201 . . 4 Average Temperature 57 | . 83 . . 3 Received Heat Transfer 243 | . 243 . . . Siege Activations . | . . . . . Martial Activations . | . . . . . Shielding Activations . | . . . . . Robots Disrupted . | . . . . . Combat Hostiles . | . . . . . Robots Corrupted . | . . . . . Combat Hostiles . | . . . . . Parts Fried . | . . . . . Impact Corruptions . | . . . . . Robots Melted . | . . . . . Combat Hostiles . | . . . . . Parts Melted . | . . . . . Heat Transferred . | . . . . . Parts Sabotaged . | . . . . . Parts Stolen . | . . . . . Parts Stripped . | . . . . . Power Chain Reactions . | . . . . . Alert | -11 -10 -10 -10 -9 ------- Run | Yrd Mat Min Exi Min Maximum Alert Level . | . . . . . Low Security (%) 100 | 100 100 100 . 100 Level 1 . | . . . . . Level 2 . | . . . . . Level 3 . | . . . . . Level 4 . | . . . . . Level 5 . | . . . . . High Security . | . . . . . Max Security . | . . . . . Peak Influence 110 | 10 110 16 . 85 Initial 16 | . . 16 . . Average 19 | . 19 2 . 55 Influence Increases 604 | 15 436 . . 153 Destroy 0b10 Robot/C 320 | . 240 . . 80 Destroy 0b10 Robot/NC 40 | 15 15 . . 10 Destroy Leader 74 | . 64 . . 10 Successful Hack 25 | . 25 . . . Disable Machine 60 | . 45 . . 15 Destroy Structure 40 | . 2 . . 38 Partial Spotted 15 | . 15 . . . Lose Combat Pursuer 30 | . 30 . . . Influence Decreases 571 | 15 392 44 . 120 Entered New Map 28 | . . 28 . . Time Decay 487 | 15 376 16 . 80 Lost Part 56 | . 16 . . 40 Squads Dispatched 1 | . 1 . . . Investigation . | . . . . . Extermination . | . . . . . Reinforcement 1 | . 1 . . . Assault . | . . . . . Garrison . | . . . . . Intercept . | . . . . . Searches Triggered . | . . . . . Construction Impeded . | . . . . . Haulers Reinforced . | . . . . . Active Scanning Responses . | . . . . . Cargo Convoy Interrupts . | . . . . . Stealth | -11 -10 -10 -10 -9 --------- Run | Yrd Mat Min Exi Min Distress Signals 3 | . 3 . . . Communications Jammed . | . . . . . Distress Signals . | . . . . . Times Spotted 42 | . 28 . . 14 Peak Tracking Total 7 | . 5 . . 7 Tactical Retreats 1 | . 1 . . . Traps | -11 -10 -10 -10 -9 ------- Run | Yrd Mat Min Exi Min Traps Triggered . | . . . . . Indirectly . | . . . . . Trap Hack Attempts . | . . . . . Triggered . | . . . . . Disarmed . | . . . . . Reprogrammed . | . . . . . Reused . | . . . . . Traps Extracted . | . . . . . Installed . | . . . . . Triggered . | . . . . . Machines | -11 -10 -10 -10 -9 ---------- Run | Yrd Mat Min Exi Min Machines Disabled 4 | . 3 . . 1 Max in Single Turn 1 | . 1 . . 1 Machines Repaired . | . . . . . Machines Dismantled . | . . . . . Machines Sabotaged . | . . . . . Overloaded Fab Kills . | . . . . . Hacking | -11 -10 -10 -10 -9 --------- Run | Yrd Mat Min Exi Min Machines Accessed 6 | . 5 . 1 . Terminals 5 | . 5 . . . Fabricators . | . . . . . Repair Stations . | . . . . . Recycling Units . | . . . . . Scanalyzers . | . . . . . Garrison Access . | . . . . . Total Hacks 13 | . 12 . 1 . Successful 8 | . 7 . 1 . Failed 5 | . 5 . . . Catastrophic 1 | . 1 . . . Database Lockouts . | . . . . . Manual 12 | . 12 . . . Terminals 12 | . 12 . . . Fabricators . | . . . . . Repair Stations . | . . . . . Recycling Units . | . . . . . Scanalyzers . | . . . . . Garrison Access . | . . . . . Terminal Hacks 1 | . . . 1 . Record 1 | . . . 1 . Fabricator Hacks . | . . . . . Repair Station Hacks . | . . . . . Recycling Unit Hacks . | . . . . . Scanalyzer . | . . . . . Garrison Access Hacks . | . . . . . Unauthorized Hacks 7 | . 7 . . . Terminals 7 | . 7 . . . Botnet 2 | . 2 . . . Skim 5 | . 5 . . . Fabricators . | . . . . . Repair Stations . | . . . . . Recycling Units . | . . . . . Scanalyzers . | . . . . . Garrison Access . | . . . . . Data Cores Recovered . | . . . . . Used . | . . . . . Hacking Detections 5 | . 5 . . . Full Trace Events . | . . . . . Feedback Events . | . . . . . Feedback Blocked . | . . . . . Robot Schematics Acquired . | . . . . . Robots Built . | . . . . . Authchips . | . . . . . Time . | . . . . . Total Robot Build Rating . | . . . . . Part Schematics Acquired . | . . . . . Parts Built . | . . . . . Authchips . | . . . . . Time . | . . . . . Total Part Build Rating . | . . . . . Part Studies Acquired . | . . . . . Parts Repaired . | . . . . . Time . | . . . . . Parts Recycled . | . . . . . Recycled Matter . | . . . . . Retrieved Matter . | . . . . . Retrieved Components . | . . . . . Parts Scanalyzed . | . . . . . Part Schematics Acquired . | . . . . . Parts Damaged . | . . . . . Bothacking | -11 -10 -10 -10 -9 ------------ Run | Yrd Mat Min Exi Min Used RIF Installer . | . . . . . Robots Hacked . | . . . . . Non-combat . | . . . . . Combat . | . . . . . Robot Hacks Applied . | . . . . . Relay Couplers Released . | . . . . . Fabnet Peak Effective % . | . . . . . Robots Rewired . | . . . . . Allies Hacked . | . . . . . Hacks Repelled . | . . . . . Allies | -11 -10 -10 -10 -9 -------- Run | Yrd Mat Min Exi Min Total Allies . | . . . . . Largest Group . | . . . . . Highest-Rated Group . | . . . . . Highest-Rated Ally . | . . . . . Total Orders . | . . . . . Ally Attacks . | . . . . . Total Damage . | . . . . . Kills . | . . . . . Allies Corrupted . | . . . . . Allies Melted . | . . . . . Intel | -11 -10 -10 -10 -9 ------- Run | Yrd Mat Min Exi Min Active Infowar (turns) 138 | 12 126 . . . Seismic 138 | 12 126 . . . Robot Analysis Total . | . . . . . Derelict Logs Recovered . | . . . . . Drone Launches . | . . . . . Drone Recoveries . | . . . . . Exploration | -11 -10 -10 -10 -9 ------------- Run | Yrd Mat Min Exi Min Turns Passed 2729 | 123 1836 188 410 172 Spaces Moved 1276 | 60 774 115 257 70 Core 16 | 16 . . . . Treads 1260 | 44 774 115 257 70 Legs . | . . . . . Wheels . | . . . . . Hover . | . . . . . Flight . | . . . . . Fastest Speed 50 | 50 160 160 160 160 Average Speed 158 | 130 160 160 160 160 Slowest Speed 160 | 160 160 160 160 160 Overloaded Moves . | . . . . . Propulsion Burnouts . | . . . . . Robots Hopped . | . . . . . Potential Cave-ins . | . . . . . Cave-ins Triggered . | . . . . . Exploration Rate (%) 41 | 3 90 30 61 23 Regions Visited 4 Branch Regions 3 Pre-discovered Areas 1 | . 1 . . . Known Exits Taken . | . . . . . Unknown Exits Taken 4 | 1 1 1 1 . Scrap Searched 2 | . . 1 . 1 Spaces Dug . | . . . . . Terrain Destroyed 49 | . . . . 49 Melee . | . . . . . Projectile . | . . . . . AOE 49 | . . . . 49 Terrain Rammed . | . . . . . Walls Destroyed . | . . . . . Machines Disabled . | . . . . . Actions | -11 -10 -10 -10 -9 --------- Run | Yrd Mat Min Exi Min Total 1845 | 91 1278 120 256 100 Wait 391 | 5 381 . . 5 Move 1272 | 59 773 114 256 70 Hop . | . . . . . Pick Up 35 | 7 22 2 . 4 Fast Attach . | . . . . . Attach 12 | 6 6 . . . Detach . | . . . . . Swap 6 | . 3 1 . 2 Drop 8 | . 4 3 . 1 Fire 119 | 14 87 . . 18 Melee . | . . . . . Ram . | . . . . . Kick . | . . . . . Crush 2 | . 2 . . . Escape Stasis . | . . . . . Rewire . | . . . . . Trap . | . . . . . Miscellaneous . | . . . . . Route ------- -11/Scrapyard -10/Materials (discovered 5 exits: *Mat x3 / [*Min] / Sub) -10/Mines (discovered 3 exits: *Mat / *Exi / Sub) -10/Exiles -9/Mines History --------- Turn | Location | Event 4 | -11/Scrapyard | Discovered new exit (range 16) 124 | -11/Scrapyard | Entered Materials 304 | -10/Materials | Build established: Mutant 351 | -10/Materials | Discovered new exit (range 16) 409 | -10/Materials | Discovered new exit (range 12) 596 | -10/Materials | Discovered new exit (range 15) 1021 | -10/Materials | Core integrity fell below 50% 1121 | -10/Materials | Discovered new exit (range 4) 1529 | -10/Materials | Learned 2 Mines zone layouts 1664 | -10/Materials | Learned 2 Mines zone layouts 1717 | -10/Materials | Learned location of Storage (-8) 1761 | -10/Materials | Identified exit to Materials 1761 | -10/Materials | Identified exit to Subcaves 1793 | -10/Materials | Learned location of 1 exit from Storage 1817 | -10/Materials | Learned Storage trap positions 1951 | -10/Materials | Learned Storage trap positions 1960 | -10/Materials | Entered Mines 2141 | -10/Mines | Deemed a non-threat by the Exiles lab entrance 2141 | -10/Mines | Discovered new exit (range 5) 2148 | -10/Mines | Entered Exiles 2148 | -10/Exiles | Found Exiles lab abandoned 2537 | -10/Exiles | Discovered new exit (range 14) 2558 | -10/Exiles | Entered Mines 2658 | -9/Mines | A weapon hastily lodged in a ceiling crevice suddenly fell to the ground 2690 | -9/Mines | Assembled infested the area 2727 | -9/Mines | Core integrity fell below 20% 2730 | -9/Mines | Destroyed by D-53 Grenadier with Mini Grenade Launcher Last Messages --------------- as-53917 sneak attacks. K-01 Serf destroyed. as-53917 sneak attacks. as-53917 destroyed. U-05 Engineer destroyed. Lgt. Treads destroyed. as-49300 destroyed. as-23391 destroyed. as-59583 destroyed. The unstable cave ceiling collapses. as-47407 destroyed. Lgt. Nuclear Core destroyed. Destroyed Lgt. Nuclear Core. as-36414 destroyed. C-45 Heavy ARC bursts open, deploying its payload. D-53 Grenadier unfolds itself. as-99365 destroyed. Assault Rifle destroyed. [Achievement: Back For More] Map ----- +----------------------------------------------------+ | ?????????????????# #### ##??? | | ?????????? #?????# #??## #??? | | ?????????? ???# #???# # #??? | | ????????? ?# #???# ### [ #??? | | ?????????# # ##### #?#####??? | | ????????????# #????????? | | ?????????????# #????????? | | ?????????????## #### ##????????? | | ????????????????????# #?????????? | | ????????????????????# ##????????? | | ???????????????????## ##???????? | | ??????????????????## #####???? | | ????????????????### ##??? | | ???????????????## #??? | | ???????????????# """ ##??? | | ??????????????# """ #???? | | ???????? ## """ #???? | | ???????? #?# #???? | | ????????######### #??# #???? | | ?????????????#??###???## ### ##???? | | ?????????????# # ######% # #????? | | ????????????## # # #????? | | ????????????#* d #????? | | ????????????#%! d ]#????? | | ?????????? = = %#????? | | ????????????# @ #????? | | ????????????????# # ##????? | | ????????????????????# #?????? | | ????????????????????# ????? | | ????????????????????########### #??? | | ????????????????????????????????#??? | | ???????????????????????????????????? | | ???????????????????????????????????? | | ???????????????????????????????????? | | ???????????????????????????????????? | | ???????????????????????????????????? | | ???????????????????????????????????? | | ???????????????????????????????????? | | ???????????????????????????????????? | | ???????????????????????????????????? | | ???????????????????????????????????? | | ???????????????????????????????????? | | ???????????????????????????????????? | | ???????????????????????????????????? | | ???????????????????????????????????? | | | | | | | | | | | +----------------------------------------------------+ Best States ------------- Heat Dissipation 25 Energy Generation 14 Energy Capacity 250 Matter Stores 300 Matter Capacity 300 Sight Range 16 Terrain Scan Density 10 Armor Coverage 150 Evasion (%) 50 Recoil Reduction 2 Item Schematics ----------------- None Robot Schematics ------------------ None Fabricated ------------ Nothing Repaired ---------- Nothing Studied --------- None Alien Tech Used ----------------- None Achievements -------------- Back For More Challenges ------------ None Game ------ Seed NeutronMobileAssimilator Manual? 0 Play Time 00:13:54 Cumulative 41.6 hours Start 2026.02.14 @ 18:19:30 End 2026.02.14 @ 18:32:02 Sessions 1 Manual Loads 0 Difficulty Rogue Special Mode None Game No. 50 Rogue 50 Adventurer 0 Explorer 0 Win Type - Total 1 Types 1/0/0/0/0/0/0/0/0/0 Lore% 28 Gallery% 27 Achievement% 26 Wizard Run 0 Options --------- Layout 1 ASCII 0 Keyboard 0 Movement Mouse Keybinds 0 Fullscreen 2 Font 24/Smallcaps Map View 50x35 Zoom Use 0% Tactical HUD 0 Map Filters NONE Filters NONE Steam 1 RUN: be8a8582-b355-4463-a1e8-c6da551b9407